[Event "Titled Tuesday Blitz June 15 2021"]
[White "Indjic, Aleksandar"]
[Black "Babiy, Olga"]
[WhiteFideId "911925"]
[BlackFideId "14117258"]
[WhiteElo "2643"]
[BlackElo "2213"]
[Result "0-1"]
[Round "01"]
[TimeControl "180+1"]
[Date "2021.06.15"]
[WhiteClock "0:00:08"]
[BlackClock "0:00:13"]

1. c4 {[%clk 0:03:00]}  d6 {[%clk 0:02:35]} 2. Nc3 {[%clk 0:02:53]}  e5 {[%clk 0:02:35]} 3. g3 {[%clk 0:02:53]}  f5 {[%clk 0:02:34]} 4. Bg2 {[%clk 0:02:53]}  Nf6 {[%clk 0:02:35]} 5. d3 {[%clk 0:02:53]}  Be7 {[%clk 0:02:35]} 6. e3 {[%clk 0:02:47]}  O-O {[%clk 0:02:36]} 7. Nge2 {[%clk 0:02:47]}  c6 {[%clk 0:02:36]} 8. e4 {[%clk 0:02:44]}  a5 {[%clk 0:02:30]} 9. O-O {[%clk 0:02:42]}  Na6 {[%clk 0:02:30]} 10. b3 {[%clk 0:02:41]}  Nc5 {[%clk 0:02:29]} 11. h3 {[%clk 0:02:27]}  Qe8 {[%clk 0:02:29]} 12. exf5 {[%clk 0:02:23]}  Bxf5 {[%clk 0:02:28]} 13. d4 {[%clk 0:02:23]}  Nce4 {[%clk 0:02:08]} 14. Be3 {[%clk 0:02:21]}  Nxc3 {[%clk 0:01:59]} 15. Nxc3 {[%clk 0:02:20]}  Rd8 {[%clk 0:01:55]} 16. Qd2 {[%clk 0:02:13]}  Qh5 {[%clk 0:01:37]} 17. Qd1 {[%clk 0:02:03]}  Bg4 {[%clk 0:01:13]} 18. hxg4 {[%clk 0:01:12]}  Nxg4 {[%clk 0:01:14]} 19. Re1 {[%clk 0:01:07]}  Bg5 {[%clk 0:01:14]} 20. Qd2 {[%clk 0:00:33]}  Bxe3 {[%clk 0:01:14]} 21. Rxe3 {[%clk 0:00:33]}  Rxf2 {[%clk 0:01:05]} 22. Qxf2 {[%clk 0:00:29]}  Nxf2 {[%clk 0:01:05]} 23. Kxf2 {[%clk 0:00:14]}  exd4 {[%clk 0:01:06]} 24. Rf3 {[%clk 0:00:14]}  dxc3 {[%clk 0:01:04]} 25. Rc1 {[%clk 0:00:14]}  Qc5+ {[%clk 0:01:02]} 26. Kf1 {[%clk 0:00:13]}  Qa3 {[%clk 0:00:47]} 27. Rc2 {[%clk 0:00:13]}  d5 {[%clk 0:00:38]} 28. cxd5 {[%clk 0:00:12]}  cxd5 {[%clk 0:00:39]} 29. Rfxc3 {[%clk 0:00:12]}  d4 {[%clk 0:00:35]} 30. Rd3 {[%clk 0:00:12]}  Qf8+ {[%clk 0:00:31]} 31. Kg1 {[%clk 0:00:12]}  Qe7 {[%clk 0:00:28]} 32. Rcd2 {[%clk 0:00:12]}  Qe1+ {[%clk 0:00:27]} 33. Kh2 {[%clk 0:00:13]}  Qe5 {[%clk 0:00:27]} 34. Bf3 {[%clk 0:00:12]}  b5 {[%clk 0:00:25]} 35. Kg2 {[%clk 0:00:12]}  h5 {[%clk 0:00:20]} 36. Re2 {[%clk 0:00:12]}  Qg5 {[%clk 0:00:20]} 37. Re4 {[%clk 0:00:11]}  Qg6 {[%clk 0:00:20]} 38. Rd2 {[%clk 0:00:10]}  Qg5 {[%clk 0:00:15]} 39. Rf4 {[%clk 0:00:09]}  h4 {[%clk 0:00:14]} 40. Bg4 {[%clk 0:00:09]}  hxg3 {[%clk 0:00:14]} 41. Kxg3 {[%clk 0:00:10]}  Qe5 {[%clk 0:00:13]} 42. Rd3 {[%clk 0:00:09]}  g5 {[%clk 0:00:13]} 43. Be6+ {[%clk 0:00:09]}  Kg7 {[%clk 0:00:13]} 44. Kg2 {[%clk 0:00:08]}  gxf4 {[%clk 0:00:13]} 0-1


[Site "https://www.chess.com"]

[Event "Titled Tuesday Blitz June 15 2021"]
[White "Paravyan, David"]
[Black "Martin Carmona, Gaston Manuel"]
[WhiteFideId "4194985"]
[BlackFideId "22284567"]
[WhiteElo "2562"]
[BlackElo "2161"]
[Result "1-0"]
[Round "01"]
[TimeControl "180+1"]
[Date "2021.06.15"]
[WhiteClock "0:00:17"]
[BlackClock "0:00:12"]

1. e4 {[%clk 0:02:59]}  c5 {[%clk 0:02:58]} 2. Nf3 {[%clk 0:02:59]}  d6 {[%clk 0:02:59]} 3. Bb5+ {[%clk 0:02:59]}  Nd7 {[%clk 0:02:58]} 4. O-O {[%clk 0:02:55]}  a6 {[%clk 0:02:58]} 5. Be2 {[%clk 0:02:56]}  Ngf6 {[%clk 0:02:45]} 6. d3 {[%clk 0:02:55]}  e6 {[%clk 0:02:45]} 7. Ng5 {[%clk 0:02:54]}  Be7 {[%clk 0:02:42]} 8. f4 {[%clk 0:02:54]}  b5 {[%clk 0:02:43]} 9. Qe1 {[%clk 0:02:51]}  Bb7 {[%clk 0:02:41]} 10. Be3 {[%clk 0:02:47]}  Qc7 {[%clk 0:02:40]} 11. Kh1 {[%clk 0:02:47]}  h6 {[%clk 0:02:38]} 12. Nf3 {[%clk 0:02:45]}  O-O {[%clk 0:02:30]} 13. Nbd2 {[%clk 0:02:42]}  c4 {[%clk 0:02:14]} 14. f5 {[%clk 0:02:32]}  e5 {[%clk 0:02:12]} 15. Qg3 {[%clk 0:02:23]}  Kh8 {[%clk 0:02:10]} 16. Qh3 {[%clk 0:02:21]}  Ng8 {[%clk 0:02:02]} 17. g4 {[%clk 0:02:19]}  f6 {[%clk 0:01:43]} 18. Nh4 {[%clk 0:02:15]}  Kh7 {[%clk 0:01:38]} 19. Ng6 {[%clk 0:02:10]}  Rfe8 {[%clk 0:01:37]} 20. Nf3 {[%clk 0:02:06]}  d5 {[%clk 0:01:35]} 21. Nxe7 {[%clk 0:01:17]}  Rxe7 {[%clk 0:01:20]} 22. g5 {[%clk 0:01:11]}  dxe4 {[%clk 0:01:13]} 23. dxe4 {[%clk 0:01:10]}  Bxe4 {[%clk 0:01:14]} 24. gxh6 {[%clk 0:01:09]}  Nxh6 {[%clk 0:01:08]} 25. Rg1 {[%clk 0:01:08]}  Bxf5 {[%clk 0:01:02]} 26. Qh5 {[%clk 0:00:53]}  Bxc2 {[%clk 0:00:53]} 27. Rg4 {[%clk 0:00:36]}  Rg8 {[%clk 0:00:34]} 28. Rag1 {[%clk 0:00:31]}  Qd8 {[%clk 0:00:14]} 29. Bxh6 {[%clk 0:00:29]}  gxh6 {[%clk 0:00:14]} 30. Rxg8 {[%clk 0:00:30]}  Qxg8 {[%clk 0:00:15]} 31. Rxg8 {[%clk 0:00:30]}  Kxg8 {[%clk 0:00:16]} 32. Qxh6 {[%clk 0:00:29]}  Rg7 {[%clk 0:00:14]} 33. Qe3 {[%clk 0:00:25]}  Bf5 {[%clk 0:00:12]} 34. b3 {[%clk 0:00:19]}  cxb3 {[%clk 0:00:11]} 35. Qxb3+ {[%clk 0:00:18]}  Be6 {[%clk 0:00:12]} 36. Qxe6+ {[%clk 0:00:17]} 1-0


[Site "https://www.chess.com"]

[Event "Titled Tuesday Blitz June 15 2021"]
[White "Reprintsev, Alexander"]
[Black "Martinez Alcantara, Jose Eduardo"]
[WhiteFideId "14100541"]
[BlackFideId "3805662"]
[WhiteElo "2126"]
[BlackElo "2690"]
[Result "0-1"]
[Round "01"]
[TimeControl "180+1"]
[Date "2021.06.15"]
[WhiteClock "0:01:55"]
[BlackClock "0:01:25"]

1. e4 {[%clk 0:02:37]}  c5 {[%clk 0:02:59]} 2. b3 {[%clk 0:02:34]}  b6 {[%clk 0:02:44]} 3. d4 {[%clk 0:02:32]}  cxd4 {[%clk 0:02:43]} 4. Qxd4 {[%clk 0:02:28]}  Bb7 {[%clk 0:02:43]} 5. Nc3 {[%clk 0:02:27]}  d6 {[%clk 0:02:38]} 6. Bb2 {[%clk 0:02:27]}  Nd7 {[%clk 0:02:37]} 7. O-O-O {[%clk 0:02:26]}  Ngf6 {[%clk 0:02:32]} 8. f4 {[%clk 0:02:25]}  e5 {[%clk 0:02:09]} 9. fxe5 {[%clk 0:02:17]}  dxe5 {[%clk 0:02:10]} 10. Qd2 {[%clk 0:02:04]}  a6 {[%clk 0:02:02]} 11. Nf3 {[%clk 0:02:00]}  Qc7 {[%clk 0:01:51]} 12. Nd5 {[%clk 0:01:55]}  Bxd5 {[%clk 0:01:51]} 13. exd5 {[%clk 0:01:56]}  Bd6 {[%clk 0:01:51]} 14. Ng5 {[%clk 0:01:55]}  h6 {[%clk 0:01:45]} 15. Ne4 {[%clk 0:01:55]}  Nxe4 {[%clk 0:01:25]} 0-1


[Site "https://www.chess.com"]

[Event "Titled Tuesday Blitz June 15 2021"]
[White "Rodriguez, Santiago"]
[Black "Niemann, Hans Moke"]
[WhiteFideId "3000591"]
[BlackFideId "2093596"]
[WhiteElo "2256"]
[BlackElo "2492"]
[Result "0-1"]
[Round "01"]
[TimeControl "180+1"]
[Date "2021.06.15"]
[WhiteClock "0:00:02"]
[BlackClock "0:00:55"]

1. d4 {[%clk 0:02:59]}  Nf6 {[%clk 0:02:49]} 2. Bg5 {[%clk 0:02:59]}  d5 {[%clk 0:02:41]} 3. Bxf6 {[%clk 0:02:58]}  gxf6 {[%clk 0:02:37]} 4. c4 {[%clk 0:02:58]}  dxc4 {[%clk 0:02:34]} 5. e3 {[%clk 0:02:58]}  c5 {[%clk 0:02:25]} 6. Bxc4 {[%clk 0:02:57]}  cxd4 {[%clk 0:02:25]} 7. exd4 {[%clk 0:02:55]}  Bg7 {[%clk 0:02:25]} 8. Nc3 {[%clk 0:02:53]}  O-O {[%clk 0:02:25]} 9. Nge2 {[%clk 0:02:53]}  Nc6 {[%clk 0:02:24]} 10. O-O {[%clk 0:02:52]}  Bf5 {[%clk 0:02:24]} 11. d5 {[%clk 0:02:43]}  Ne5 {[%clk 0:02:23]} 12. Bb3 {[%clk 0:02:43]}  Qb6 {[%clk 0:02:13]} 13. Nd4 {[%clk 0:02:41]}  Bg6 {[%clk 0:02:12]} 14. Na4 {[%clk 0:02:20]}  Qb4 {[%clk 0:01:56]} 15. a3 {[%clk 0:02:12]}  Qa5 {[%clk 0:01:40]} 16. f4 {[%clk 0:02:10]}  b5 {[%clk 0:01:40]} 17. Nc3 {[%clk 0:01:59]}  Qb6 {[%clk 0:01:39]} 18. f5 {[%clk 0:01:35]}  Bh5 {[%clk 0:01:38]} 19. Qxh5 {[%clk 0:01:35]}  Qxd4+ {[%clk 0:01:38]} 20. Kh1 {[%clk 0:01:35]}  a6 {[%clk 0:01:34]} 21. Rad1 {[%clk 0:01:30]}  Qg4 {[%clk 0:01:32]} 22. Qxg4 {[%clk 0:01:26]}  Nxg4 {[%clk 0:01:33]} 23. Rde1 {[%clk 0:01:16]}  Ne5 {[%clk 0:01:32]} 24. Rf4 {[%clk 0:01:08]}  Bh6 {[%clk 0:01:32]} 25. Rd4 {[%clk 0:01:04]}  Rfd8 {[%clk 0:01:26]} 26. d6 {[%clk 0:00:58]}  Rxd6 {[%clk 0:01:23]} 27. Rxd6 {[%clk 0:00:58]}  exd6 {[%clk 0:01:23]} 28. Rd1 {[%clk 0:00:58]}  Rd8 {[%clk 0:01:17]} 29. Nd5 {[%clk 0:00:58]}  Kg7 {[%clk 0:01:15]} 30. g3 {[%clk 0:00:52]}  Rc8 {[%clk 0:01:09]} 31. Kg2 {[%clk 0:00:52]}  a5 {[%clk 0:01:08]} 32. a4 {[%clk 0:00:39]}  bxa4 {[%clk 0:01:05]} 33. Bxa4 {[%clk 0:00:39]}  Rb8 {[%clk 0:01:05]} 34. b3 {[%clk 0:00:39]}  Rc8 {[%clk 0:01:05]} 35. Ne7 {[%clk 0:00:20]}  Rc2+ {[%clk 0:01:03]} 36. Kh3 {[%clk 0:00:21]}  Be3 {[%clk 0:01:01]} 37. Rxd6 {[%clk 0:00:19]}  Bg1 {[%clk 0:01:00]} 38. g4 {[%clk 0:00:19]}  Rc3+ {[%clk 0:01:00]} 39. Kg2 {[%clk 0:00:19]}  Bc5 {[%clk 0:00:58]} 40. Rc6 {[%clk 0:00:08]}  Nxc6 {[%clk 0:00:55]} 41. Nxc6 {[%clk 0:00:07]}  Bb6 {[%clk 0:00:55]} 42. h3 {[%clk 0:00:06]}  Bc7 {[%clk 0:00:54]} 43. Ne7 {[%clk 0:00:04]}  Rg3+ {[%clk 0:00:54]} 44. Kf2 {[%clk 0:00:05]}  Rxh3 {[%clk 0:00:55]} 45. Nd5 {[%clk 0:00:05]}  Be5 {[%clk 0:00:55]} 46. Ne3 {[%clk 0:00:02]}  Bd4 {[%clk 0:00:55]} 0-1


[Site "https://www.chess.com"]

[Event "Titled Tuesday Blitz June 15 2021"]
[White "Sarana, Alexey"]
[Black "Zemach, Roee"]
[WhiteFideId "24133795"]
[BlackFideId "2818531"]
[WhiteElo "2629"]
[BlackElo "2131"]
[Result "1-0"]
[Round "01"]
[TimeControl "180+1"]
[Date "2021.06.15"]
[WhiteClock "0:01:02"]
[BlackClock "0:00:02"]

1. e4 {[%clk 0:03:00]}  e5 {[%clk 0:02:57]} 2. Nf3 {[%clk 0:02:59]}  Nc6 {[%clk 0:02:57]} 3. Bc4 {[%clk 0:02:59]}  Bc5 {[%clk 0:02:57]} 4. c3 {[%clk 0:02:59]}  Nf6 {[%clk 0:02:57]} 5. d3 {[%clk 0:02:58]}  O-O {[%clk 0:02:57]} 6. O-O {[%clk 0:02:59]}  d5 {[%clk 0:02:57]} 7. exd5 {[%clk 0:02:58]}  Nxd5 {[%clk 0:02:58]} 8. Re1 {[%clk 0:02:59]}  Bg4 {[%clk 0:02:58]} 9. Nbd2 {[%clk 0:02:58]}  Nb6 {[%clk 0:02:40]} 10. h3 {[%clk 0:02:58]}  Bh5 {[%clk 0:02:39]} 11. b4 {[%clk 0:02:58]}  Bd6 {[%clk 0:02:37]} 12. Bb3 {[%clk 0:02:55]}  Re8 {[%clk 0:02:20]} 13. Ne4 {[%clk 0:02:55]}  Bg6 {[%clk 0:02:18]} 14. a4 {[%clk 0:02:43]}  a5 {[%clk 0:01:59]} 15. b5 {[%clk 0:02:42]}  Ne7 {[%clk 0:01:58]} 16. Be3 {[%clk 0:02:34]}  Nd7 {[%clk 0:01:49]} 17. Qe2 {[%clk 0:02:14]}  Nf5 {[%clk 0:01:46]} 18. Bg5 {[%clk 0:02:12]}  Be7 {[%clk 0:01:39]} 19. Rad1 {[%clk 0:02:05]}  h6 {[%clk 0:01:37]} 20. Bc1 {[%clk 0:02:00]}  Bd6 {[%clk 0:01:22]} 21. g4 {[%clk 0:01:56]}  Nh4 {[%clk 0:01:18]} 22. Be3 {[%clk 0:01:55]}  Nxf3+ {[%clk 0:01:05]} 23. Qxf3 {[%clk 0:01:56]}  Nf6 {[%clk 0:00:34]} 24. Nxf6+ {[%clk 0:01:48]}  Qxf6 {[%clk 0:00:32]} 25. Qxf6 {[%clk 0:01:49]}  gxf6 {[%clk 0:00:33]} 26. Bxh6 {[%clk 0:01:49]}  Rad8 {[%clk 0:00:31]} 27. Be3 {[%clk 0:01:47]}  b6 {[%clk 0:00:29]} 28. f3 {[%clk 0:01:45]}  Bc5 {[%clk 0:00:29]} 29. Bxc5 {[%clk 0:01:45]}  bxc5 {[%clk 0:00:30]} 30. Bc4 {[%clk 0:01:45]}  Rd6 {[%clk 0:00:29]} 31. Kf2 {[%clk 0:01:45]}  Red8 {[%clk 0:00:29]} 32. Re3 {[%clk 0:01:45]}  Kf8 {[%clk 0:00:28]} 33. Kg3 {[%clk 0:01:45]}  Kg7 {[%clk 0:00:18]} 34. h4 {[%clk 0:01:45]}  Bh7 {[%clk 0:00:18]} 35. f4 {[%clk 0:01:45]}  exf4+ {[%clk 0:00:18]} 36. Kxf4 {[%clk 0:01:46]}  Kf8 {[%clk 0:00:06]} 37. Rd2 {[%clk 0:01:43]}  R6d7 {[%clk 0:00:06]} 38. h5 {[%clk 0:01:39]}  Kg7 {[%clk 0:00:05]} 39. Kg3 {[%clk 0:01:38]}  Kh6 {[%clk 0:00:05]} 40. Kh4 {[%clk 0:01:38]}  Kg7 {[%clk 0:00:05]} 41. Rf3 {[%clk 0:01:36]}  Rd6 {[%clk 0:00:04]} 42. Kg3 {[%clk 0:01:29]}  Kh6 {[%clk 0:00:05]} 43. Kf4 {[%clk 0:01:24]}  Kg7 {[%clk 0:00:04]} 44. Ke3 {[%clk 0:01:16]}  Kh6 {[%clk 0:00:03]} 45. Rf4 {[%clk 0:01:16]}  Kg5 {[%clk 0:00:03]} 46. Rf1 {[%clk 0:01:02]}  Re8+ {[%clk 0:00:03]} 47. Kf2 {[%clk 0:01:02]}  Kxg4 {[%clk 0:00:03]} 48. Rg1+ {[%clk 0:01:01]}  Kxh5 {[%clk 0:00:03]} 49. Bxf7+ {[%clk 0:01:01]}  Kh6 {[%clk 0:00:02]} 50. Bxe8 {[%clk 0:01:02]} 1-0


[Site "https://www.chess.com"]

[Event "Titled Tuesday Blitz June 15 2021"]
[White "Saravana, Krishnan P."]
[Black "Hansen, Eric"]
[WhiteFideId "5018382"]
[BlackFideId "2606771"]
[WhiteElo "2245"]
[BlackElo "2568"]
[Result "0-1"]
[Round "01"]
[TimeControl "180+1"]
[Date "2021.06.15"]
[WhiteClock "0:00:06"]
[BlackClock "0:00:04"]

1. e4 {[%clk 0:02:59]}  c5 {[%clk 0:02:54]} 2. Nf3 {[%clk 0:02:58]}  e6 {[%clk 0:02:54]} 3. g3 {[%clk 0:02:56]}  Nc6 {[%clk 0:02:49]} 4. Bg2 {[%clk 0:02:56]}  e5 {[%clk 0:02:41]} 5. O-O {[%clk 0:02:53]}  Nf6 {[%clk 0:02:41]} 6. Re1 {[%clk 0:02:53]}  d6 {[%clk 0:02:41]} 7. c3 {[%clk 0:02:53]}  Be7 {[%clk 0:02:38]} 8. d4 {[%clk 0:02:53]}  exd4 {[%clk 0:02:38]} 9. cxd4 {[%clk 0:02:53]}  Bg4 {[%clk 0:02:39]} 10. d5 {[%clk 0:02:23]}  Ne5 {[%clk 0:02:36]} 11. Nc3 {[%clk 0:02:09]}  O-O {[%clk 0:02:36]} 12. Bf4 {[%clk 0:02:08]}  Nfd7 {[%clk 0:02:36]} 13. a4 {[%clk 0:01:58]}  a6 {[%clk 0:02:34]} 14. a5 {[%clk 0:01:58]}  Re8 {[%clk 0:02:34]} 15. Ra3 {[%clk 0:01:56]}  Nc4 {[%clk 0:02:30]} 16. Ra2 {[%clk 0:01:51]}  Nce5 {[%clk 0:02:25]} 17. Ra3 {[%clk 0:01:49]}  c4 {[%clk 0:02:16]} 18. Re3 {[%clk 0:01:38]}  Nd3 {[%clk 0:02:12]} 19. b3 {[%clk 0:01:31]}  Rc8 {[%clk 0:02:04]} 20. bxc4 {[%clk 0:01:30]}  Nxf4 {[%clk 0:02:04]} 21. gxf4 {[%clk 0:01:29]}  Rxc4 {[%clk 0:02:04]} 22. h3 {[%clk 0:01:26]}  Bh5 {[%clk 0:02:03]} 23. Qd3 {[%clk 0:01:14]}  Rb4 {[%clk 0:01:59]} 24. e5 {[%clk 0:01:10]}  Rxf4 {[%clk 0:01:55]} 25. e6 {[%clk 0:01:10]}  Nc5 {[%clk 0:01:52]} 26. exf7+ {[%clk 0:01:03]}  Bxf7 {[%clk 0:01:51]} 27. Qd2 {[%clk 0:01:03]}  Rb4 {[%clk 0:01:39]} 28. Nd4 {[%clk 0:01:00]}  Bg5 {[%clk 0:01:32]} 29. f4 {[%clk 0:00:54]}  Rxe3 {[%clk 0:01:29]} 30. Qxe3 {[%clk 0:00:54]}  Bf6 {[%clk 0:01:26]} 31. Nce2 {[%clk 0:00:54]}  Qe8 {[%clk 0:01:19]} 32. Qxe8+ {[%clk 0:00:43]}  Bxe8 {[%clk 0:01:19]} 33. Nf5 {[%clk 0:00:44]}  Bb5 {[%clk 0:01:07]} 34. Re3 {[%clk 0:00:43]}  Rb2 {[%clk 0:00:57]} 35. Ned4 {[%clk 0:00:30]}  Bd7 {[%clk 0:00:56]} 36. Ne6 {[%clk 0:00:27]}  h5 {[%clk 0:00:32]} 37. Bf3 {[%clk 0:00:24]}  g6 {[%clk 0:00:31]} 38. Nfd4 {[%clk 0:00:18]}  Rb4 {[%clk 0:00:25]} 39. Ne2 {[%clk 0:00:11]}  Kf7 {[%clk 0:00:20]} 40. f5 {[%clk 0:00:10]}  gxf5 {[%clk 0:00:12]} 41. Bxh5+ {[%clk 0:00:10]}  Kg8 {[%clk 0:00:12]} 42. Rg3+ {[%clk 0:00:09]}  Kh8 {[%clk 0:00:12]} 43. N2f4 {[%clk 0:00:10]}  Nxe6 {[%clk 0:00:08]} 44. dxe6 {[%clk 0:00:09]}  Bc6 {[%clk 0:00:08]} 45. Ng6+ {[%clk 0:00:09]}  Kh7 {[%clk 0:00:08]} 46. Nf8+ {[%clk 0:00:09]}  Kh6 {[%clk 0:00:08]} 47. Be2 {[%clk 0:00:09]}  Bd4+ {[%clk 0:00:08]} 48. Kf1 {[%clk 0:00:08]}  Rb1+ {[%clk 0:00:07]} 49. Bd1 {[%clk 0:00:09]}  Rxd1+ {[%clk 0:00:07]} 50. Ke2 {[%clk 0:00:10]}  Ra1 {[%clk 0:00:07]} 51. e7 {[%clk 0:00:10]}  Ra2+ {[%clk 0:00:06]} 52. Kd3 {[%clk 0:00:10]}  Be5 {[%clk 0:00:06]} 53. Rg6+ {[%clk 0:00:10]}  Kh5 {[%clk 0:00:07]} 54. Rg8 {[%clk 0:00:09]}  Ra3+ {[%clk 0:00:06]} 55. Kc4 {[%clk 0:00:09]}  Ra4+ {[%clk 0:00:06]} 56. Kb3 {[%clk 0:00:09]}  Re4 {[%clk 0:00:06]} 57. Ne6 {[%clk 0:00:08]}  Bf6 {[%clk 0:00:06]} 58. e8=Q+ {[%clk 0:00:06]}  Bxe8 {[%clk 0:00:06]} 59. Rxe8 {[%clk 0:00:07]}  d5 {[%clk 0:00:04]} 60. Kc2 {[%clk 0:00:06]}  f4 {[%clk 0:00:04]} 61. Kd3 {[%clk 0:00:06]}  f3 {[%clk 0:00:04]} 0-1


[Site "https://www.chess.com"]

[Event "Titled Tuesday Blitz June 15 2021"]
[White "Tabatabaei, M. Amin"]
[Black "Karimov, Alisher"]
[WhiteFideId "12521213"]
[BlackFideId "14700280"]
[WhiteElo "2555"]
[BlackElo "2186"]
[Result "1-0"]
[Round "01"]
[TimeControl "180+1"]
[Date "2021.06.15"]
[WhiteClock "0:00:58"]
[BlackClock "0:00:09"]

1. d4 {[%clk 0:03:00]}  Nf6 {[%clk 0:02:58]} 2. Nf3 {[%clk 0:03:01]}  e6 {[%clk 0:02:57]} 3. Bf4 {[%clk 0:03:01]}  b6 {[%clk 0:02:55]} 4. e3 {[%clk 0:03:02]}  Bb7 {[%clk 0:02:55]} 5. a4 {[%clk 0:03:01]}  a6 {[%clk 0:02:55]} 6. Be2 {[%clk 0:03:01]}  Be7 {[%clk 0:02:54]} 7. h3 {[%clk 0:03:01]}  O-O {[%clk 0:02:53]} 8. O-O {[%clk 0:03:02]}  c5 {[%clk 0:02:49]} 9. Nbd2 {[%clk 0:03:01]}  d6 {[%clk 0:02:48]} 10. c3 {[%clk 0:02:56]}  Nbd7 {[%clk 0:02:46]} 11. Bh2 {[%clk 0:02:52]}  Re8 {[%clk 0:02:45]} 12. Qb3 {[%clk 0:02:52]}  Bc6 {[%clk 0:02:42]} 13. Nc4 {[%clk 0:02:51]}  Bd5 {[%clk 0:02:31]} 14. Qc2 {[%clk 0:02:51]}  Nf8 {[%clk 0:02:26]} 15. Rfd1 {[%clk 0:02:51]}  cxd4 {[%clk 0:02:23]} 16. exd4 {[%clk 0:02:49]}  b5 {[%clk 0:02:15]} 17. axb5 {[%clk 0:02:50]}  axb5 {[%clk 0:02:15]} 18. Rxa8 {[%clk 0:02:50]}  Bxa8 {[%clk 0:02:12]} 19. Na3 {[%clk 0:02:51]}  b4 {[%clk 0:02:11]} 20. cxb4 {[%clk 0:02:52]}  N8d7 {[%clk 0:01:59]} 21. Nb5 {[%clk 0:02:40]}  Qb6 {[%clk 0:01:50]} 22. Qc7 {[%clk 0:02:20]}  Rb8 {[%clk 0:01:27]} 23. Qxb6 {[%clk 0:02:08]}  Rxb6 {[%clk 0:01:24]} 24. Ra1 {[%clk 0:02:05]}  Bxf3 {[%clk 0:01:16]} 25. gxf3 {[%clk 0:02:05]}  g5 {[%clk 0:00:43]} 26. Ra7 {[%clk 0:02:00]}  Bf8 {[%clk 0:00:39]} 27. f4 {[%clk 0:01:55]}  gxf4 {[%clk 0:00:36]} 28. Bxf4 {[%clk 0:01:56]}  Nd5 {[%clk 0:00:36]} 29. Bd2 {[%clk 0:01:54]}  N7f6 {[%clk 0:00:34]} 30. Bd3 {[%clk 0:01:50]}  Nh5 {[%clk 0:00:31]} 31. Bc4 {[%clk 0:01:47]}  Nhf6 {[%clk 0:00:28]} 32. Kf1 {[%clk 0:01:43]}  Ne4 {[%clk 0:00:28]} 33. Be1 {[%clk 0:01:42]}  Nf4 {[%clk 0:00:27]} 34. Ra8 {[%clk 0:01:32]}  d5 {[%clk 0:00:23]} 35. Nc7 {[%clk 0:01:05]}  dxc4 {[%clk 0:00:21]} 36. b5 {[%clk 0:01:06]}  Nd5 {[%clk 0:00:20]} 37. Nxd5 {[%clk 0:00:59]}  exd5 {[%clk 0:00:20]} 38. Bb4 {[%clk 0:00:58]}  Nc5 {[%clk 0:00:09]} 1-0


[Site "https://www.chess.com"]

[Event "Titled Tuesday Blitz June 15 2021"]
[White "Terry, Renato"]
[Black "Danfii"]
[WhiteFideId "3803457"]
[WhiteElo "2581"]
[BlackElo "2501"]
[Result "1-0"]
[Round "01"]
[TimeControl "180+1"]
[Date "2021.06.15"]
[WhiteClock "0:01:09"]
[BlackClock "0:00:17"]

1. e4 {[%clk 0:02:53]}  e5 {[%clk 0:02:59]} 2. Nf3 {[%clk 0:02:53]}  Nc6 {[%clk 0:02:59]} 3. c3 {[%clk 0:02:53]}  d5 {[%clk 0:02:58]} 4. Qa4 {[%clk 0:02:52]}  f6 {[%clk 0:02:56]} 5. Bb5 {[%clk 0:02:51]}  dxe4 {[%clk 0:02:45]} 6. Bxc6+ {[%clk 0:02:49]}  bxc6 {[%clk 0:02:45]} 7. Qxc6+ {[%clk 0:02:50]}  Bd7 {[%clk 0:02:46]} 8. Qxe4 {[%clk 0:02:51]}  Bd6 {[%clk 0:02:39]} 9. d4 {[%clk 0:02:50]}  f5 {[%clk 0:02:21]} 10. Qe2 {[%clk 0:02:50]}  e4 {[%clk 0:02:21]} 11. Ne5 {[%clk 0:02:48]}  Bxe5 {[%clk 0:02:10]} 12. dxe5 {[%clk 0:02:49]}  Qe7 {[%clk 0:02:10]} 13. Bf4 {[%clk 0:02:42]}  Nh6 {[%clk 0:01:42]} 14. Bxh6 {[%clk 0:02:36]}  gxh6 {[%clk 0:01:43]} 15. Qh5+ {[%clk 0:02:35]}  Kd8 {[%clk 0:01:39]} 16. Qxh6 {[%clk 0:02:31]}  Qxe5 {[%clk 0:01:38]} 17. Nd2 {[%clk 0:02:30]}  Kc8 {[%clk 0:01:33]} 18. Qa6+ {[%clk 0:02:26]}  Kb8 {[%clk 0:01:24]} 19. O-O-O {[%clk 0:02:14]}  Qb5 {[%clk 0:01:24]} 20. Qa3 {[%clk 0:02:08]}  Kc8 {[%clk 0:01:11]} 21. Nb3 {[%clk 0:02:06]}  Rg8 {[%clk 0:00:53]} 22. Nc5 {[%clk 0:01:46]}  Bc6 {[%clk 0:00:47]} 23. Rd4 {[%clk 0:01:26]}  a5 {[%clk 0:00:36]} 24. Rhd1 {[%clk 0:01:24]}  a4 {[%clk 0:00:28]} 25. Ne6 {[%clk 0:01:17]}  Kb7 {[%clk 0:00:20]} 26. Rb4 {[%clk 0:01:17]}  Rae8 {[%clk 0:00:18]} 27. Rxb5+ {[%clk 0:01:12]}  Bxb5 {[%clk 0:00:19]} 28. Nxc7 {[%clk 0:01:08]}  Kxc7 {[%clk 0:00:17]} 29. Qc5+ {[%clk 0:01:08]}  Bc6 {[%clk 0:00:17]} 30. Rd6 {[%clk 0:01:09]} 1-0


[Site "https://www.chess.com"]